[Event "DFMMLV 2024"]
[Site "Braunfels"]
[Date "2024.05.30"]
[Round "1.35"]
[White "Steinbacher, Claudia"]
[Black "Dietrich, Mareike"]
[Result "1-0"]
[ECO "E11"]
[WhiteElo "2027"]
[BlackElo "1855"]
[Annotator "NA RC"]
[PlyCount "77"]
[EventDate "2024.05.30"]
[EventType "team-tourn"]
[EventCountry "GER"]
[SourceTitle "playchess.com"]
[Source "ChessBase"]
[SourceQuality "1"]
[TimeControl "40/5400+30:1800+30"]

1. d4 {[%emt 0:00:03]} Nf6 {[%emt 0:00:05]} 2. c4 {[%emt 0:00:03]} e6 {[%emt 0:00:04]} 3. Nf3 {[%emt 0:00:06]} Bb4+ {[%emt 0:00:06]} 4. Bd2 {[%emt 0:00:30]} c5 {[%emt 0:00:05]} 5. e3 {[%emt 0:01:09]} O-O {[%emt 0:01:11]} 6. Bd3 {[%emt 0:02:46]} Bxd2+ {[%emt 0:05:05]} 7. Qxd2 {[%emt 0:00:55]} cxd4 {[%emt 0:01:41]} 8. exd4 {[%emt 0:00:46]} d5 {[%emt 0:02:32]} 9. c5 {[%emt 0:03:30]} b6 {[%emt 0:01:08]} 10. b4 {[%emt 0:02:35]} Qe7 {[%emt 0:02:34]} 11. Qb2 {[%emt 0:02:38]} Bd7 {[%emt 0:08:23]} 12. O-O {[%emt 0:01:41]} a5 {[%emt 0:03:53]} 13. a3 {[%emt 0:00:42]} Na6 {[%emt 0:11:42]} 14. b5 {[%emt 0:15:10]} Nc7 {[%emt 0:05:16]} 15. cxb6 {[%emt 0:10:37]} Nce8 {[%emt 0:00:34]} 16. Ne5 {[%emt 0:00:56]} Qd6 {[%emt 0:00:57]} 17. a4 {[%emt 0:01:19]} Qxb6 {[%emt 0:03:31]} 18. Nd2 {[%emt 0:00:52]} Nd6 {[%emt 0:02:14]} 19. Rac1 {[%emt 0:01:00]} Rfc8 {[%emt 0:01:01]} 20. Nb3 {[%emt 0:01:23]} Be8 {[%emt 0:00:45]} 21. Rxc8 {[%emt 0:06:22]} Rxc8 {[%emt 0:00:10]} 22. Rc1 {[%emt 0:00:18]} Rxc1+ {[%emt 0:06:00]} 23. Qxc1 {[%emt 0:00:02]} Nfe4 {[%emt 0:00:07]} 24. f3 {[%emt 0:05:12]} Nf6 {[%emt 0:00:45]} 25. Qc3 {[%emt 0:00:30]} Nb7 {[%emt 0:02:35]} 26. Nc6 {[%emt 0:03:00]} Nh5 {[%emt 0:02:47]} 27. Ncxa5 {[%emt 0:04:29]} Nf4 {[%emt 0:00:21]} 28. Nxb7 {[%emt 0:00:39]} Nxd3 {[%emt 0:03:00]} 29. Qc8 {[%emt 0:03:16]} Kf8 {[%emt 0:00:55]} 30. N7c5 {[%emt 0:01:17]} Nxc5 {[%emt 0:01:37]} 31. Qxc5+ {[%emt 0:00:23]} Qxc5 {[%emt 0:00:05]} 32. Nxc5 {[%emt 0:03:25]} Ke7 {[%emt 0:00:36]} 33. Kf2 {[%emt 0:02:00]} Kd6 {[%emt 0:01:03]} 34. Ke3 {[%emt 0:01:28]} f6 {[%emt 0:03:50]} 35. b6 {[%emt 0:08:48]} e5 {[%emt 0:01:10]} 36. a5 {[%emt 0:00:41]} Kc6 {[%emt 0:03:06]} 37. Nd3 {[%emt 0:01:58]} exd4+ {[%emt 0:06:36]} 38. Kxd4 {[%emt 0:00:03]} Kb5 {[%emt 0:00:12]} 39. b7 {[%emt 0:00:28]} 1-0

[Event "DFMMLV 2024"]
[Site "Braunfels"]
[Date "2024.05.30"]
[Round "1.36"]
[White "Ulrich, Helena Irene"]
[Black "Peglau, Mirjam"]
[Result "0-1"]
[ECO "C06"]
[WhiteElo "1819"]
[BlackElo "1948"]
[Annotator "NA RC"]
[PlyCount "112"]
[EventDate "2024.05.30"]
[EventType "team-tourn"]
[EventCountry "GER"]
[SourceTitle "playchess.com"]
[Source "ChessBase"]
[SourceQuality "1"]
[TimeControl "40/5400+30:1800+30"]

1. e4 {[%emt 0:00:03]} e6 {[%emt 0:00:05]} 2. d4 {[%emt 0:00:03]} d5 {[%emt 0:00:02]} 3. Nd2 {[%emt 0:00:04]} Nf6 {[%emt 0:00:51]} 4. e5 {[%emt 0:00:06]} Nfd7 {[%emt 0:00:03]} 5. Bd3 {[%emt 0:00:04]} c5 {[%emt 0:00:09]} 6. c3 {[%emt 0:00:04]} Nc6 {[%emt 0:00:13]} 7. Ne2 {[%emt 0:00:15]} b6 {[%emt 0:02:02]} 8. O-O {[%emt 0:06:05]} cxd4 {[%emt 0:05:13]} 9. cxd4 {[%emt 0:00:20]} Nb4 {[%emt 0:01:04]} 10. Bb1 {[%emt 0:05:24]} Ba6 {[%emt 0:01:07]} 11. Nf3 {[%emt 0:02:52]} Qc7 {[%emt 0:13:13]} 12. a3 {[%emt 0:06:14]} Nc6 {[%emt 0:06:53]} 13. Re1 {[%emt 0:09:32]} Na5 {[%emt 0:05:36]} 14. Bd3 {[%emt 0:15:48]} Bxd3 {[%emt 0:01:19]} 15. Qxd3 {[%emt 0:00:08]} Qc4 {[%emt 0:00:25]} 16. Qxc4 {[%emt 0:08:13]} Nxc4 {[%emt 0:02:58]} 17. Nc3 {[%emt 0:05:19]} Be7 {[%emt 0:01:03]} 18. Rb1 {[%emt 0:09:49]} O-O {[%emt 0:00:21]} 19. Bg5 {[%emt 0:02:07]} Bxg5 {[%emt 0:00:42]} 20. Nxg5 {[%emt 0:00:05]} Rac8 {[%emt 0:01:14]} 21. Na2 {[%emt 0:04:45]} a5 {[%emt 0:07:40]} 22. Re2 {[%emt 0:06:31]} Rc6 {[%emt 0:04:15]} 23. f4 {[%emt 0:04:01]} h6 {[%emt 0:02:05]} 24. Nf3 {[%emt 0:00:22]} Rfc8 {[%emt 0:00:29]} 25. Kf2 {[%emt 0:01:25]} b5 {[%emt 0:01:58]} 26. Ne1 {[%emt 0:02:22]} Nf8 {[%emt 0:03:41]} 27. Nd3 {[%emt 0:01:55]} Ng6 {[%emt 0:03:23]} 28. g3 {[%emt 0:01:15]} Ne7 {[%emt 0:00:27]} 29. Ne1 {[%emt 0:02:19]} Nf5 {[%emt 0:15:13]} 30. Nf3 {[%emt 0:00:11]} h5 {[%emt 0:00:20]} 31. h3 {[%emt 0:02:42]} Rb8 {[%emt 0:08:18]} 32. Nc1 {[%emt 0:01:41]} b4 {[%emt 0:01:41]} 33. axb4 {[%emt 0:00:08]} Rxb4 {[%emt 0:00:01]} 34. Nd3 {[%emt 0:01:15]} Rb3 {[%emt 0:00:37]} 35. Rd1 {[%emt 0:02:31]} Rcb6 {[%emt 0:00:53]} 36. g4 {[%emt 0:01:09]} hxg4 {[%emt 0:01:00]} 37. hxg4 {[%emt 0:00:09]} Nh6 {[%emt 0:00:33]} 38. Kg3 {[%emt 0:00:10]} Nxb2 {[%emt 0:00:18]} 39. Nxb2 {[%emt 0:00:06]} Rxb2 {[%emt 0:00:01]} 40. Rxb2 {[%emt 0:00:06]} Rxb2 {[%emt 0:00:03]} 41. Ra1 {[%emt 0:30:59]} Rb5 {[%emt 0:30:58]} 42. Ra3 {[%emt 0:01:39]} Kh7 {[%emt 0:09:21]} 43. Ng5+ {[%emt 0:00:00]} Kg6 {[%emt 0:00:00]} 44. Nf3 {[%emt 0:00:00]} Ng8 {[%emt 0:00:00]} 45. Ra2 {[%emt 0:00:00]} Ne7 {[%emt 0:00:00]} 46. Rh2 {[%emt 0:00:00]} Rb3 {[%emt 0:00:00]} 47. Ra2 {[%emt 0:00:00]} Nc6 {[%emt 0:00:00]} 48. Kf2 {[%emt 0:00:00]} Rb4 {[%emt 0:00:00]} 49. Ke3 {[%emt 0:00:00]} a4 {[%emt 0:00:00]} 50. Ra3 {[%emt 0:00:00]} Rc4 {[%emt 0:00:00]} 51. Nh4+ {[%emt 0:00:00]} Kh7 {[%emt 0:00:00]} 52. Nf3 {[%emt 0:00:00]} Nb4 {[%emt 0:00:00]} 53. Kd2 {[%emt 0:00:00]} Nc2 {[%emt 0:00:00]} 54. Rc3 {[%emt 0:00:00]} Nxd4 {[%emt 0:00:00]} 55. Nxd4 {[%emt 0:00:00]} Rxd4+ {[%emt 0:00:00]} 56. Ke3 {[%emt 0:00:00]} Rb4 {[%emt 0:00:00]} 0-1

[Event "DFMMLV 2024"]
[Site "Braunfels"]
[Date "2024.05.30"]
[Round "1.37"]
[White "Just, Anita"]
[Black "Geletzke, Hannah"]
[Result "1-0"]
[ECO "B92"]
[WhiteElo "1884"]
[BlackElo "1753"]
[Annotator "NA RC"]
[PlyCount "79"]
[EventDate "2024.05.30"]
[EventType "team-tourn"]
[EventCountry "GER"]
[SourceTitle "playchess.com"]
[Source "ChessBase"]
[SourceQuality "1"]
[TimeControl "40/5400+30:1800+30"]

1. e4 {[%emt 0:00:05]} c5 {[%emt 0:00:06]} 2. Nf3 {[%emt 0:00:04]} d6 {[%emt 0:00:09]} 3. d4 {[%emt 0:00:06]} cxd4 {[%emt 0:00:05]} 4. Nxd4 {[%emt 0:00:05]} Nf6 {[%emt 0:00:13]} 5. Nc3 {[%emt 0:00:07]} a6 {[%emt 0:00:11]} 6. Be2 {[%emt 0:00:32]} e5 {[%emt 0:00:18]} 7. Nb3 {[%emt 0:00:09]} Be6 {[%emt 0:01:15]} 8. O-O {[%emt 0:00:31]} Be7 {[%emt 0:00:46]} 9. f4 {[%emt 0:00:39]} Qc7 {[%emt 0:02:13]} 10. f5 {[%emt 0:02:23]} Bc4 {[%emt 0:01:03]} 11. Be3 {[%emt 0:01:46]} Nbd7 {[%emt 0:02:00]} 12. g4 {[%emt 0:07:28]} h6 {[%emt 0:10:50]} 13. Nd2 {[%emt 0:03:21]} Bxe2 {[%emt 0:24:13]} 14. Qxe2 {[%emt 0:00:22]} b5 {[%emt 0:00:57]} 15. a3 {[%emt 0:05:55]} Nc5 {[%emt 0:07:09]} 16. Qg2 {[%emt 0:08:46]} Qb7 {[%emt 0:16:20]} 17. b4 {[%emt 0:09:56]} Ncd7 {[%emt 0:01:55]} 18. a4 {[%emt 0:06:10]} Rc8 {[%emt 0:08:39]} 19. axb5 {[%emt 0:04:08]} axb5 {[%emt 0:02:05]} 20. Ra3 {[%emt 0:03:32]} O-O {[%emt 0:03:03]} 21. h4 {[%emt 0:02:42]} h5 {[%emt 0:08:05]} 22. g5 {[%emt 0:03:49]} Ng4 {[%emt 0:00:38]} 23. Nd5 {[%emt 0:02:04]} Kh8 {[%emt 0:00:45]} 24. Nxe7 {[%emt 0:03:16]} Rxc2 {[%emt 0:02:16]} 25. Qf3 {[%emt 0:04:52]} Nb6 {[%emt 0:02:36]} 26. Nd5 {[%emt 0:01:20]} Nxd5 {[%emt 0:01:06]} 27. exd5 {[%emt 0:00:15]} Nxe3 {[%emt 0:00:33]} 28. Qxe3 {[%emt 0:00:50]} Qxd5 {[%emt 0:00:11]} 29. Rd3 {[%emt 0:01:43]} Qc6 {[%emt 0:00:25]} 30. Qf3 {[%emt 0:02:50]} Qxf3 {[%emt 0:01:42]} 31. Rfxf3 {[%emt 0:00:38]} Rd8 {[%emt 0:01:13]} 32. Rfe3 {[%emt 0:01:44]} Rb2 {[%emt 0:00:44]} 33. Nb3 {[%emt 0:02:18]} Rb1+ {[%emt 0:01:14]} 34. Kg2 {[%emt 0:00:33]} Rc8 {[%emt 0:00:24]} 35. Rxd6 {[%emt 0:05:41]} Rc4 {[%emt 0:01:39]} 36. Nd2 {[%emt 0:05:40]} Rb2 {[%emt 0:00:31]} 37. g6 {[%emt 0:01:41]} fxg6 {[%emt 0:00:24]} 38. fxg6 {[%emt 0:00:09]} Rg4+ {[%emt 0:00:43]} 39. Rg3 {[%emt 0:00:27]} Rd4 {[%emt 0:00:00]} 40. Rh3 {[%emt 0:11:53]} 1-0

[Event "DFMMLV 2024"]
[Site "Braunfels"]
[Date "2024.05.30"]
[Round "1.38"]
[White "Loos, Tilda"]
[Black "Kosovska, Olena"]
[Result "1/2-1/2"]
[ECO "B22"]
[WhiteElo "1667"]
[BlackElo "1935"]
[Annotator "NA RC"]
[PlyCount "85"]
[EventDate "2024.05.30"]
[EventType "team-tourn"]
[EventCountry "GER"]
[SourceTitle "playchess.com"]
[Source "ChessBase"]
[SourceQuality "1"]
[TimeControl "40/5400+30:1800+30"]

1. e4 {[%emt 0:00:02]} c5 {[%emt 0:00:10]} 2. c3 {[%emt 0:00:04]} d5 {[%emt 0:00:19]} 3. exd5 {[%emt 0:00:07]} Qxd5 {[%emt 0:00:15]} 4. d4 {[%emt 0:00:10]} e5 {[%emt 0:03:32]} 5. Na3 {[%emt 0:09:40]} a6 {[%emt 0:12:16]} 6. Nf3 {[%emt 0:03:54]} cxd4 {[%emt 0:02:20]} 7. Nc2 {[%emt 0:07:14]} Nc6 {[%emt 0:04:08]} 8. cxd4 {[%emt 0:01:32]} e4 {[%emt 0:01:32]} 9. Nd2 {[%emt 0:00:48]} Nf6 {[%emt 0:03:06]} 10. Bc4 {[%emt 0:02:01]} Qg5 {[%emt 0:16:41]} 11. Ne3 {[%emt 0:05:36]} Bd6 {[%emt 0:12:06]} 12. d5 {[%emt 0:11:02]} Ne5 {[%emt 0:03:07]} 13. O-O {[%emt 0:54:50]} Qh4 {[%emt 0:06:24]} 14. g3 {[%emt 0:00:00]} Qh3 {[%emt 0:07:27]} 15. Re1 {[%emt 0:00:00]} O-O {[%emt 0:00:21]} 16. Bf1 {[%emt 0:00:00]} Qd7 {[%emt 0:02:46]} 17. Nec4 {[%emt 0:00:00]} Nxc4 {[%emt 0:02:00]} 18. Nxc4 {[%emt 0:00:00]} Bc5 {[%emt 0:04:33]} 19. Be3 {[%emt 0:00:00]} Ba7 {[%emt 0:08:01]} 20. Bxa7 {[%emt 0:00:00]} Rxa7 {[%emt 0:00:08]} 21. Qd4 {[%emt 0:00:00]} b5 {[%emt 0:01:36]} 22. Ne5 {[%emt 0:00:00]} Qb7 {[%emt 0:05:32]} 23. Bg2 {[%emt 0:00:00]} Bf5 {[%emt 0:00:36]} 24. Nc6 {[%emt 0:00:00]} Raa8 {[%emt 0:00:27]} 25. Qe5 {[%emt 0:00:00]} Bg6 {[%emt 0:01:49]} 26. Ne7+ {[%emt 0:00:00]} Kh8 {[%emt 0:00:05]} 27. Nxg6+ {[%emt 0:00:00]} hxg6 {[%emt 0:00:04]} 28. Bxe4 {[%emt 0:00:00]} Rae8 {[%emt 0:00:14]} 29. Qd4 {[%emt 0:00:00]} Rd8 {[%emt 0:01:05]} 30. Rad1 {[%emt 0:00:00]} Rd6 {[%emt 0:00:34]} 31. Bg2 {[%emt 0:00:00]} Rfd8 {[%emt 0:00:09]} 32. Re5 {[%emt 0:00:00]} b4 {[%emt 0:01:05]} 33. Qc5 {[%emt 0:00:00]} Qb6 {[%emt 0:01:06]} 34. Qxb6 {[%emt 0:00:00]} Rxb6 {[%emt 0:00:03]} 35. Re7 {[%emt 0:00:00]} Kg8 {[%emt 0:00:14]} 36. Rd4 {[%emt 0:00:00]} a5 {[%emt 0:00:47]} 37. Re5 {[%emt 0:01:03]} Rbd6 {[%emt 0:00:19]} 38. Kf1 {[%emt 0:00:30]} Nd7 {[%emt 0:00:23]} 39. Re7 {[%emt 0:01:28]} Nb6 {[%emt 0:00:17]} 40. Rf4 {[%emt 0:02:00]} f6 {[%emt 0:00:30]} 41. Re6 {[%emt 0:31:00]} Kf7 {[%emt 0:32:08]} 42. Rxd6 {[%emt 0:00:22]} Rxd6 {[%emt 0:01:15]} 43. Rd4 1/2-1/2

[Event "DFMMLV 2024"]
[Site "Braunfels"]
[Date "2024.05.30"]
[Round "1.39"]
[White "Lowke, Kathrin"]
[Black "Kohl, Natalie"]
[Result "1-0"]
[ECO "B92"]
[WhiteElo "1893"]
[BlackElo "1683"]
[Annotator "NA RC"]
[PlyCount "60"]
[EventDate "2024.05.30"]
[EventType "team-tourn"]
[EventCountry "GER"]
[SourceTitle "playchess.com"]
[Source "ChessBase"]
[SourceQuality "1"]
[TimeControl "40/5400+30:1800+30"]

1. e4 {[%emt 0:00:04]} c5 {[%emt 0:00:25]} 2. Nf3 {[%emt 0:00:19]} d6 {[%emt 0:00:48]} 3. d4 {[%emt 0:00:19]} cxd4 {[%emt 0:00:24]} 4. Nxd4 {[%emt 0:00:20]} Nf6 {[%emt 0:00:40]} 5. Nc3 {[%emt 0:00:24]} a6 {[%emt 0:01:11]} 6. Be2 {[%emt 0:04:23]} e5 {[%emt 0:02:38]} 7. Nb3 {[%emt 0:00:15]} Be7 {[%emt 0:00:27]} 8. O-O {[%emt 0:00:14]} O-O {[%emt 0:00:09]} 9. a4 {[%emt 0:01:52]} Be6 {[%emt 0:01:42]} 10. Be3 {[%emt 0:03:20]} d5 {[%emt 0:07:48]} 11. exd5 {[%emt 0:04:03]} Bxd5 {[%emt 0:01:17]} 12. Bf3 {[%emt 0:04:48]} Bc6 {[%emt 0:06:10]} 13. Qe2 {[%emt 0:01:47]} Qc7 {[%emt 0:15:53]} 14. g3 {[%emt 0:04:29]} Nbd7 {[%emt 0:04:56]} 15. a5 {[%emt 0:08:08]} e4 {[%emt 0:02:25]} 16. Bg2 {[%emt 0:03:48]} Ne5 {[%emt 0:03:36]} 17. Bf4 {[%emt 0:01:24]} Nf3+ {[%emt 0:13:56]} 18. Bxf3 {[%emt 0:01:32]} exf3 {[%emt 0:00:14]} 19. Bxc7 {[%emt 0:02:37]} fxe2 {[%emt 0:00:11]} 20. Nxe2 {[%emt 0:00:20]} Rac8 {[%emt 0:00:26]} 21. Bb6 {[%emt 0:00:43]} Bb5 {[%emt 0:00:37]} 22. Rfe1 {[%emt 0:00:11]} Rxc2 {[%emt 0:00:23]} 23. Ned4 {[%emt 0:00:13]} Rxb2 {[%emt 0:09:08]} 24. Rxe7 {[%emt 0:00:45]} Bc4 {[%emt 0:02:16]} 25. Nc5 {[%emt 0:04:44]} Ng4 {[%emt 0:07:39]} 26. Ne4 {[%emt 0:03:29]} Bd3 {[%emt 0:12:25]} 27. h3 {[%emt 0:04:08]} f5 {[%emt 0:03:14]} 28. hxg4 {[%emt 0:00:48]} fxe4 {[%emt 0:00:02]} 29. Ne6 {[%emt 0:00:13]} Rf6 {[%emt 0:01:34]} 30. Bd4 {[%emt 0:00:27]} e3 {[%emt 0:02:56]} 1-0

[Event "DFMMLV 2024"]
[Site "Braunfels"]
[Date "2024.05.30"]
[Round "1.40"]
[White "Scheiding, Sophia"]
[Black "Peglau, Sarah"]
[Result "1-0"]
[ECO "B22"]
[WhiteElo "1629"]
[BlackElo "1851"]
[Annotator "NA RC"]
[PlyCount "77"]
[EventDate "2024.05.30"]
[EventType "team-tourn"]
[EventCountry "GER"]
[SourceTitle "playchess.com"]
[Source "ChessBase"]
[SourceQuality "1"]
[TimeControl "40/5400+30:1800+30"]

1. e4 {[%emt 0:00:03]} c5 {[%emt 0:00:06]} 2. c3 {[%emt 0:00:10]} Nc6 {[%emt 0:01:39]} 3. Nf3 {[%emt 0:00:14]} d5 {[%emt 0:01:02]} 4. exd5 {[%emt 0:00:26]} Qxd5 {[%emt 0:00:08]} 5. Na3 {[%emt 0:01:07]} Bg4 {[%emt 0:02:12]} 6. Be2 {[%emt 0:00:51]} Nf6 {[%emt 0:01:00]} 7. O-O {[%emt 0:00:32]} e5 {[%emt 0:04:25]} 8. d3 {[%emt 0:01:37]} Rd8 {[%emt 0:02:29]} 9. Nb5 {[%emt 0:04:54]} Qd7 {[%emt 0:02:27]} 10. Be3 {[%emt 0:02:48]} a6 {[%emt 0:03:46]} 11. Na3 {[%emt 0:01:04]} Nd5 {[%emt 0:01:25]} 12. Nc4 {[%emt 0:03:23]} Nxe3 {[%emt 0:02:30]} 13. fxe3 {[%emt 0:00:13]} Bd6 {[%emt 0:05:27]} 14. Nb6 {[%emt 0:06:59]} Qe7 {[%emt 0:02:28]} 15. Nd5 {[%emt 0:01:06]} Qe6 {[%emt 0:00:27]} 16. e4 {[%emt 0:00:57]} O-O {[%emt 0:01:57]} 17. Ng5 {[%emt 0:09:01]} Qg6 {[%emt 0:00:09]} 18. Bxg4 {[%emt 0:00:33]} Qxg5 {[%emt 0:00:16]} 19. Rf5 {[%emt 0:00:16]} Qg6 {[%emt 0:03:12]} 20. Rh5 {[%emt 0:01:06]} Ne7 {[%emt 0:12:48]} 21. Bf5 {[%emt 0:01:34]} Nxd5 {[%emt 0:51:07]} 22. exd5 {[%emt 0:03:59]} Qxh5 {[%emt 0:00:00]} 23. Qxh5 {[%emt 0:00:11]} g6 {[%emt 0:00:00]} 24. Qg4 {[%emt 0:00:36]} Kh8 {[%emt 0:00:00]} 25. Rf1 {[%emt 0:03:23]} gxf5 {[%emt 0:00:00]} 26. Rxf5 {[%emt 0:00:12]} f6 {[%emt 0:00:00]} 27. Rh5 {[%emt 0:03:10]} Rf7 {[%emt 0:00:00]} 28. Qe6 {[%emt 0:01:37]} Rdd7 {[%emt 0:00:00]} 29. Rh6 {[%emt 0:04:06]} Kg7 {[%emt 0:00:00]} 30. Qh3 {[%emt 0:00:40]} Kh8 {[%emt 0:00:00]} 31. Qf5 {[%emt 0:00:15]} Bf8 {[%emt 0:00:00]} 32. Rxf6 {[%emt 0:00:57]} Rxf6 {[%emt 0:00:00]} 33. Qxf6+ {[%emt 0:00:09]} Bg7 {[%emt 0:00:00]} 34. Qe6 {[%emt 0:00:30]} Rd8 {[%emt 0:00:00]} 35. d6 {[%emt 0:00:12]} e4 {[%emt 0:00:00]} 36. dxe4 {[%emt 0:01:14]} b5 {[%emt 0:00:00]} 37. d7 {[%emt 0:48:55]} Rf8 {[%emt 0:00:00]} 38. Qe8 {[%emt 0:00:00]} b4 {[%emt 0:00:00]} 39. d8=Q {[%emt 0:00:00]} 1-0

[Event "DFMMLV 2024"]
[Site "Braunfels"]
[Date "2024.05.30"]
[Round "1.41"]
[White "Peschel, Julia"]
[Black "Rath, Alina"]
[Result "0-1"]
[ECO "B22"]
[WhiteElo "1736"]
[BlackElo "2041"]
[Annotator "NA RC"]
[PlyCount "132"]
[EventDate "2024.05.30"]
[EventType "team-tourn"]
[EventCountry "GER"]
[SourceTitle "playchess.com"]
[Source "ChessBase"]
[SourceQuality "1"]
[TimeControl "40/5400+30:1800+30"]

1. e4 {[%emt 0:00:03]} c5 {[%emt 0:00:30]} 2. c3 {[%emt 0:00:09]} d5 {[%emt 0:00:08]} 3. exd5 {[%emt 0:00:08]} Qxd5 {[%emt 0:00:06]} 4. d4 {[%emt 0:00:13]} e6 {[%emt 0:00:07]} 5. Nf3 {[%emt 0:00:37]} Nf6 {[%emt 0:00:09]} 6. Bd3 {[%emt 0:01:34]} Nc6 {[%emt 0:02:46]} 7. Bc2 {[%emt 0:00:26]} cxd4 {[%emt 0:00:41]} 8. cxd4 {[%emt 0:00:14]} Be7 {[%emt 0:00:30]} 9. Nc3 {[%emt 0:00:31]} Qd6 {[%emt 0:00:10]} 10. O-O {[%emt 0:00:36]} O-O {[%emt 0:00:10]} 11. Be3 {[%emt 0:04:40]} Rd8 {[%emt 0:03:37]} 12. a3 {[%emt 0:03:05]} b6 {[%emt 0:04:24]} 13. Qd3 {[%emt 0:01:45]} g6 {[%emt 0:04:02]} 14. Rad1 {[%emt 0:02:45]} Bb7 {[%emt 0:02:19]} 15. Bg5 {[%emt 0:14:26]} Rac8 {[%emt 0:05:04]} 16. Bb3 {[%emt 0:02:09]} Na5 {[%emt 0:10:31]} 17. Ba2 {[%emt 0:07:47]} Qc7 {[%emt 0:11:01]} 18. Ne5 {[%emt 0:04:34]} Nc6 {[%emt 0:05:31]} 19. Nf3 {[%emt 0:02:47]} a6 {[%emt 0:03:16]} 20. d5 {[%emt 0:05:15]} Ne5 {[%emt 0:12:34]} 21. Nxe5 {[%emt 0:11:27]} Qxe5 {[%emt 0:00:11]} 22. Qe3 {[%emt 0:00:43]} Qxe3 {[%emt 0:03:56]} 23. Bxe3 {[%emt 0:00:16]} Nxd5 {[%emt 0:01:52]} 24. Nxd5 {[%emt 0:00:35]} Bxd5 {[%emt 0:00:28]} 25. Bxd5 {[%emt 0:01:53]} Rxd5 {[%emt 0:00:38]} 26. Bxb6 {[%emt 0:03:43]} Bf6 {[%emt 0:01:08]} 27. b4 {[%emt 0:02:46]} Rc3 {[%emt 0:02:51]} 28. a4 {[%emt 0:02:46]} Rb3 {[%emt 0:03:37]} 29. Rb1 {[%emt 0:03:06]} Rdd3 {[%emt 0:01:57]} 30. g3 {[%emt 0:01:38]} Bb2 {[%emt 0:04:07]} 31. Ba5 {[%emt 0:04:24]} Bd4 {[%emt 0:00:28]} 32. b5 {[%emt 0:05:39]} axb5 {[%emt 0:04:51]} 33. axb5 {[%emt 0:00:08]} Bb2 {[%emt 0:00:53]} 34. b6 {[%emt 0:01:12]} Rd5 {[%emt 0:04:47]} 35. Bc3 {[%emt 0:05:17]} Rdb5 {[%emt 0:00:17]} 36. Bxb2 {[%emt 0:05:03]} Rxb2 {[%emt 0:00:19]} 37. Rxb2 {[%emt 0:01:20]} Rxb2 {[%emt 0:00:04]} 38. Rc1 {[%emt 0:00:13]} Rxb6 {[%emt 0:00:05]} 39. Rc2 {[%emt 0:00:10]} h5 {[%emt 0:00:26]} 40. h3 {[%emt 0:00:48]} g5 {[%emt 0:00:30]} 41. Rc5 {[%emt 0:31:20]} f6 {[%emt 0:35:37]} 42. h4 {[%emt 0:00:39]} gxh4 {[%emt 0:00:19]} 43. gxh4 {[%emt 0:00:26]} e5 {[%emt 0:00:31]} 44. f4 {[%emt 0:00:00]} Re6 {[%emt 0:00:00]} 45. Kf2 {[%emt 0:00:00]} Kg7 {[%emt 0:00:00]} 46. Ke3 {[%emt 0:00:00]} Kg6 {[%emt 0:00:00]} 47. Ke4 {[%emt 0:00:00]} exf4+ {[%emt 0:00:00]} 48. Kxf4 {[%emt 0:00:00]} Re1 {[%emt 0:00:00]} 49. Kf3 {[%emt 0:00:00]} Rh1 {[%emt 0:00:00]} 50. Rc4 {[%emt 0:00:00]} Rh3+ {[%emt 0:00:00]} 51. Kg2 {[%emt 0:00:00]} Re3 {[%emt 0:00:00]} 52. Rc5 {[%emt 0:00:00]} Re5 {[%emt 0:00:00]} 53. Rc4 {[%emt 0:00:00]} Kf5 {[%emt 0:00:00]} 54. Kf3 {[%emt 0:00:00]} Ra5 {[%emt 0:00:00]} 55. Rf4+ {[%emt 0:00:00]} Ke5 {[%emt 0:00:00]} 56. Re4+ {[%emt 0:00:00]} Kf5 {[%emt 0:00:00]} 57. Rf4+ {[%emt 0:00:00]} Ke6 {[%emt 0:00:00]} 58. Rb4 {[%emt 0:00:00]} Ra3+ {[%emt 0:00:00]} 59. Kf4 {[%emt 0:00:00]} Rh3 {[%emt 0:00:00]} 60. Rb6+ {[%emt 0:00:00]} Kf7 {[%emt 0:00:00]} 61. Kf5 {[%emt 0:00:00]} Rf3+ {[%emt 0:00:00]} 62. Ke4 {[%emt 0:00:00]} Rf1 {[%emt 0:00:00]} 63. Rb5 {[%emt 0:00:00]} Kg6 {[%emt 0:00:00]} 64. Ke3 {[%emt 0:00:00]} Rg1 {[%emt 0:00:00]} 65. Rb2 {[%emt 0:00:00]} Rg3+ {[%emt 0:00:00]} 66. Kf2 {[%emt 0:00:00]} Rg4 {[%emt 0:00:00]} 0-1

[Event "DFMMLV 2024"]
[Site "Braunfels"]
[Date "2024.05.30"]
[Round "1.44"]
[White "Fock, Amina"]
[Black "Storkebaum, Ulrike"]
[Result "1-0"]
[ECO "C78"]
[WhiteElo "1932"]
[BlackElo "1811"]
[Annotator "NA RC"]
[PlyCount "73"]
[EventDate "2024.05.30"]
[EventType "team-tourn"]
[EventCountry "GER"]
[SourceTitle "playchess.com"]
[Source "ChessBase"]
[SourceQuality "1"]
[TimeControl "40/5400+30:1800+30"]

1. e4 {[%emt 0:00:03]} e5 {[%emt 0:00:04]} 2. Nf3 {[%emt 0:00:07]} Nc6 {[%emt 0:00:03]} 3. Bb5 {[%emt 0:00:17]} a6 {[%emt 0:00:12]} 4. Ba4 {[%emt 0:00:06]} Nf6 {[%emt 0:00:06]} 5. d3 {[%emt 0:00:09]} b5 {[%emt 0:00:54]} 6. Bb3 {[%emt 0:00:05]} h6 {[%emt 0:00:20]} 7. O-O {[%emt 0:00:51]} Bc5 {[%emt 0:00:54]} 8. a4 {[%emt 0:01:27]} b4 {[%emt 0:01:43]} 9. a5 {[%emt 0:01:01]} O-O {[%emt 0:01:51]} 10. c3 {[%emt 0:01:19]} d6 {[%emt 0:02:22]} 11. d4 {[%emt 0:06:23]} exd4 {[%emt 0:00:51]} 12. cxd4 {[%emt 0:00:09]} Ba7 {[%emt 0:00:20]} 13. d5 {[%emt 0:03:24]} Ne5 {[%emt 0:02:26]} 14. Nxe5 {[%emt 0:06:48]} dxe5 {[%emt 0:02:59]} 15. Qe1 {[%emt 0:02:42]} Rb8 {[%emt 0:02:39]} 16. Be3 {[%emt 0:06:14]} Bxe3 {[%emt 0:05:43]} 17. Qxe3 {[%emt 0:00:08]} Bd7 {[%emt 0:03:38]} 18. Rc1 {[%emt 0:03:07]} Bb5 {[%emt 0:04:52]} 19. Nd2 {[%emt 0:01:28]} Qe7 {[%emt 0:02:52]} 20. Bc4 {[%emt 0:02:36]} Bxc4 {[%emt 0:07:51]} 21. Rxc4 {[%emt 0:01:02]} Rb7 {[%emt 0:06:13]} 22. Rc6 {[%emt 0:02:22]} Ra8 {[%emt 0:01:44]} 23. Qd3 {[%emt 0:01:45]} Rba7 {[%emt 0:05:42]} 24. Rac1 {[%emt 0:01:48]} Ne8 {[%emt 0:01:30]} 25. Nb3 {[%emt 0:02:30]} Qg5 {[%emt 0:04:39]} 26. Qc4 {[%emt 0:01:35]} Nd6 {[%emt 0:01:35]} 27. Qe2 {[%emt 0:09:36]} Nb5 {[%emt 0:09:58]} 28. R1c4 {[%emt 0:07:06]} Rd8 {[%emt 0:08:50]} 29. Rxb4 {[%emt 0:10:06]} f5 {[%emt 0:01:33]} 30. f3 {[%emt 0:08:19]} f4 {[%emt 0:06:21]} 31. Qf2 {[%emt 0:00:47]} Raa8 {[%emt 0:02:14]} 32. Nc5 {[%emt 0:01:35]} Rd6 {[%emt 0:01:42]} 33. Rxa6 {[%emt 0:03:41]} Rdxa6 {[%emt 0:03:26]} 34. Nxa6 {[%emt 0:00:09]} Nd6 {[%emt 0:02:03]} 35. Rb8+ {[%emt 0:01:39]} Rxb8 {[%emt 0:00:14]} 36. Nxb8 {[%emt 0:00:05]} Qd8 {[%emt 0:00:51]} 37. Nc6 {[%emt 0:00:40]} 1-0